{"text_format":"3","workbook":"xlsx","n_sheets":1,"sheets":["Asinsspiediens un glikoze"],"not_rendered":{"defined_names":9},"read":"whole","date_system":"1900"}

{"sheet":"Asinsspiediens un glikoze","index":0,"n_rows":13,"n_cols":11,"rows_kept":13,"merged":[[0,1,4,3],[0,4,0,9],[1,4,1,6],[1,7,1,9]]}
[null,"Asinsspiediena un glikozes līmeņa žurnāls",null,null,"Pielāgojiet mēroga vērtības šūnās E2–J5 zemāk."]
[{"$nulls":4},"ASINSSPIEDIENS",null,null,"GLIKOZES LĪMEŅA SKALA"]
[{"$nulls":4},120,"SISTOLISKAIS",140,70,100,150]
[{"$nulls":4},80,"DIASTOLISKAIS",90,"ZEMS","NORMĀLS","AUGSTS"]
[{"$nulls":4},"VĒLAMAIS ASINSSPIEDIENS",null,"JĀZVANA ĀRSTAM"]
[null,"Datums","Laiks","Notikums","Sistoliskais","Diastoliskais","Pulss","Glikoze","Līmenis","Statuss","Piezīmes"]
[null,{"$f":"TODAY()","v":"2022-08-04"},"06:00:00","Pamošanās",129,79,72,55,{"$f":"Asinsspiedienaunglikozeslīmeņažurnāls[[#This Row],[Glikoze]]","v":55},{"$f":"IFERROR(IF(Asinsspiedienaunglikozeslīmeņažurnāls[[#This Row],[Līmenis]]=0,\"\",IF(Asinsspiedienaunglikozeslīmeņažurnāls[[#This Row],[Līmenis]]<=GLow,\"Zems\",IF(AND(Asinsspiedienaunglikozeslīmeņažurnāls[[#This Row],[Līmenis]]>GLow,Asinsspiedienaunglikozeslīmeņažurnāls[[#This Row],[Līmenis]]<GHigh),\"Normāls\",\"Augsts\"))), \"\")","v":"Zems"}]
[null,{"$f":"TODAY()","v":"2022-08-04"},"07:00:00","Pirms ēšanas",120,80,74,70,{"$f":"Asinsspiedienaunglikozeslīmeņažurnāls[[#This Row],[Glikoze]]","v":70},{"$f":"IFERROR(IF(Asinsspiedienaunglikozeslīmeņažurnāls[[#This Row],[Līmenis]]=0,\"\",IF(Asinsspiedienaunglikozeslīmeņažurnāls[[#This Row],[Līmenis]]<=GLow,\"Zems\",IF(AND(Asinsspiedienaunglikozeslīmeņažurnāls[[#This Row],[Līmenis]]>GLow,Asinsspiedienaunglikozeslīmeņažurnāls[[#This Row],[Līmenis]]<GHigh),\"Normāls\",\"Augsts\"))), \"\")","v":"Zems"}]
[null,"2022-08-04","09:00:00","Pēc ēšanas",133,80,75,75,{"$f":"Asinsspiedienaunglikozeslīmeņažurnāls[[#This Row],[Glikoze]]","v":75},{"$f":"IFERROR(IF(Asinsspiedienaunglikozeslīmeņažurnāls[[#This Row],[Līmenis]]=0,\"\",IF(Asinsspiedienaunglikozeslīmeņažurnāls[[#This Row],[Līmenis]]<=GLow,\"Zems\",IF(AND(Asinsspiedienaunglikozeslīmeņažurnāls[[#This Row],[Līmenis]]>GLow,Asinsspiedienaunglikozeslīmeņažurnāls[[#This Row],[Līmenis]]<GHigh),\"Normāls\",\"Augsts\"))), \"\")","v":"Normāls"}]
[null,"2022-08-04","10:00:00","Tikai asinsspied.",143,91,75,190,{"$f":"Asinsspiedienaunglikozeslīmeņažurnāls[[#This Row],[Glikoze]]","v":190},{"$f":"IFERROR(IF(Asinsspiedienaunglikozeslīmeņažurnāls[[#This Row],[Līmenis]]=0,\"\",IF(Asinsspiedienaunglikozeslīmeņažurnāls[[#This Row],[Līmenis]]<=GLow,\"Zems\",IF(AND(Asinsspiedienaunglikozeslīmeņažurnāls[[#This Row],[Līmenis]]>GLow,Asinsspiedienaunglikozeslīmeņažurnāls[[#This Row],[Līmenis]]<GHigh),\"Normāls\",\"Augsts\"))), \"\")","v":"Augsts"}]
[null,"2022-08-04","12:00:00","Pirms ēšanas",141,84,70,140,{"$f":"Asinsspiedienaunglikozeslīmeņažurnāls[[#This Row],[Glikoze]]","v":140},{"$f":"IFERROR(IF(Asinsspiedienaunglikozeslīmeņažurnāls[[#This Row],[Līmenis]]=0,\"\",IF(Asinsspiedienaunglikozeslīmeņažurnāls[[#This Row],[Līmenis]]<=GLow,\"Zems\",IF(AND(Asinsspiedienaunglikozeslīmeņažurnāls[[#This Row],[Līmenis]]>GLow,Asinsspiedienaunglikozeslīmeņažurnāls[[#This Row],[Līmenis]]<GHigh),\"Normāls\",\"Augsts\"))), \"\")","v":"Normāls"}]
[null,{"$f":"TODAY()","v":"2022-08-04"},"15:00:00","Pēc ēšanas",132,80,68,90,{"$f":"Asinsspiedienaunglikozeslīmeņažurnāls[[#This Row],[Glikoze]]","v":90},{"$f":"IFERROR(IF(Asinsspiedienaunglikozeslīmeņažurnāls[[#This Row],[Līmenis]]=0,\"\",IF(Asinsspiedienaunglikozeslīmeņažurnāls[[#This Row],[Līmenis]]<=GLow,\"Zems\",IF(AND(Asinsspiedienaunglikozeslīmeņažurnāls[[#This Row],[Līmenis]]>GLow,Asinsspiedienaunglikozeslīmeņažurnāls[[#This Row],[Līmenis]]<GHigh),\"Normāls\",\"Augsts\"))), \"\")","v":"Normāls"},"Kopā ar ēdienu ieņēmu asinsspiediena medikamentus"]
[null,"Vidējie rādītāji",null,null,{"$f":"SUBTOTAL(101,Asinsspiedienaunglikozeslīmeņažurnāls[Sistoliskais])","v":133},{"$f":"SUBTOTAL(101,Asinsspiedienaunglikozeslīmeņažurnāls[Diastoliskais])","v":{"v":82.33333333333333,"d":"82"}},{"$f":"SUBTOTAL(101,Asinsspiedienaunglikozeslīmeņažurnāls[Pulss])","v":{"v":72.33333333333333,"d":"72"}},{"$f":"SUBTOTAL(101,Asinsspiedienaunglikozeslīmeņažurnāls[Glikoze])","v":{"v":103.33333333333333,"d":"103"}}]